fUST/lending_fUST_20250603
["ID","MTS","AMOUNT","RATE_DAILY","PERIOD"]
[363915650,1748923847502,-1347.42,0.00021369,2]
[363915651,1748923847511,-570.89,0.00021369,2]
[363915652,1748923847520,-455.6,0.00021369,2]
[363915653,1748923847530,-550.28,0.00021369,2]
[363915654,1748923847541,-644.57,0.00021369,2]
[363915655,1748923847552,-440.0,0.00021369,2]
[363915656,1748923847562,-658.84,0.00021369,2]
[363915657,1748923847574,-500.0,0.00021415,2]
[363915658,1748923847584,-500.72708819,0.00021415,2]
[363915659,1748923847594,-1473.3717005,0.00021486,5]
[363915660,1748923847604,-177.53905904,0.00021522,2]
[363915661,1748923847614,-5000.0,0.00021522,2]
[363915662,1748923847624,-2000.0,0.00021586,2]
[363915663,1748923847634,-151.0,0.000216,4]
[363915664,1748923847644,-439.475391,0.00021624,2]
[363915665,1748923847655,-63582.03369999,0.00021642,2]
[363915666,1748923847769,-5242.44218805,0.00021642,2]
[363915667,1748923847900,-440.0,0.00018082,2]
[363915668,1748923847911,-1350.0,0.00020547,2]
[363915669,1748923847920,-2654.68042514,0.00021642,2]
[363915670,1748923848195,-4.73155644,0.00016438,2]
[363915671,1748923848208,-257.3663636,0.00016438,2]
[363915672,1748923848221,-177.90207996,0.00016438,2]
[363915673,1748923848231,-448.3034898,0.00016712,2]
[363915674,1748923848243,-605.1065102,0.00016712,2]
[363915675,1748923848253,-1053.41,0.00016986,2]
[363915676,1748923848263,-1053.41,0.0001726,2]
[363915677,1748923848273,-1053.41,0.00017534,2]
[363915678,1748923848284,-1053.41,0.00017808,2]
[363915679,1748923848294,-1053.41,0.00018082,2]
[363915680,1748923848304,-440.0,0.00018356,2]
[363915681,1748923848314,-1053.41,0.00018356,2]
[363915682,1748923848329,-440.0,0.0001863,2]
[363915683,1748923848339,-1053.41,0.0001863,2]
[363915684,1748923848350,-440.0,0.00018904,2]
[363915685,1748923848360,-440.0,0.00019178,2]
[363915686,1748923848371,-440.0,0.00019452,2]
[363915687,1748923848381,-440.0,0.00019726,2]
[363915688,1748923848390,-440.0,0.0002,2]
[363915689,1748923848400,-440.0,0.00020273,2]
[363915690,1748923848410,-440.0,0.00020547,2]
[363915691,1748923848420,-895.58804343,0.00020625,2]
[363915692,1748923848430,-1350.0,0.00020821,2]
[363915693,1748923848440,-1350.0,0.00021095,2]
[363915694,1748923848450,-1350.0,0.00021369,2]
[363915695,1748923848460,-7504.63485252,0.00021642,2]
[363915696,1748923848640,-440.0,0.00016438,2]
[363915697,1748923848650,-1053.41,0.00018904,2]
[363915698,1748923848660,-1053.41,0.00019178,2]
[363915699,1748923848671,-1053.41,0.00019452,2]
[363915700,1748923848682,-1053.41,0.00019726,2]
[363915701,1748923848692,-1053.41,0.0002,2]
[363915702,1748923848702,-1053.41,0.00020273,2]
[363915703,1748923848711,-1053.41,0.00020547,2]
[363915704,1748923848723,-440.0,0.00020821,2]
[363915705,1748923848733,-1053.41,0.00020821,2]
[363915706,1748923848743,-154.11360691,0.00021095,2]
[363915707,1748923848755,-285.88639309,0.00021095,2]
[363915708,1748923848766,-1053.41,0.00021095,2]
[363915709,1748923848776,-440.0,0.00021369,2]
[363915710,1748923848786,-1053.41,0.00021369,2]
[363915711,1748923848797,-8298.67780285,0.00021642,2]
[363915712,1748923848810,-1923.61354487,0.00021642,2]
[363915713,1748923848823,-709.16309492,0.00021642,2]
[363915714,1748923877079,10000.0,0.0001552,2]
[363915715,1748923891779,10000.0,0.0001552,2]
[363915716,1748923912019,8224.0,0.0001552,2]
[363915717,1748924104536,214.764777,0.00013699,2]
[363915720,1748924481710,23837.80211645,0.0002,120]
[363915721,1748924512486,36779.70746491,0.00018,120]
[363915811,1748925032649,-300.0,0.00015765,2]
[363915812,1748925032660,-300.0,0.00015765,2]
[363915813,1748925032670,-300.0,0.00015765,2]
[363915814,1748925032679,-300.0,0.00015765,2]
[363915815,1748925032690,-300.0,0.00015765,2]
[363915816,1748925032699,-300.0,0.00015765,2]
[363915817,1748925032709,-13203.34711302,0.00015766,2]
[363915894,1748925038697,-5843.50958023,0.00015766,2]
[363915900,1748925038754,-2907.11961225,0.00015766,2]
[363915902,1748925038764,-752.880887,0.00015986,2]
[363915905,1748925038773,-196.8516,0.00016295,2]
[363915907,1748925038783,-335.84551633,0.00016338,2]
[363915909,1748925038792,-440.0,0.00016438,2]
[363915911,1748925038803,-240.0,0.00016438,2]
[363915913,1748925038813,-440.0,0.00016438,2]
[363915915,1748925038823,-440.0,0.00016438,2]
[363915917,1748925038832,-29.17238442,0.00016438,2]
[363916330,1748925043459,-716.5618136,0.00016438,2]
[363916641,1748925046669,-99.44580198,0.00016438,2]
[363916643,1748925046679,-440.70948469,0.00016438,2]
[363916645,1748925046689,-470.98,0.00016438,2]
[363916647,1748925046698,-440.0,0.00016438,2]
[363916649,1748925046707,-467.06,0.00016438,2]
[363916651,1748925046717,-440.0,0.00016438,2]
[363916653,1748925046727,-440.0,0.00016711,2]
[363916655,1748925046736,-440.0,0.00016711,2]
[363916657,1748925046746,-440.0,0.00016711,2]
[363916659,1748925046755,-861.78,0.00016711,2]
[363916661,1748925046765,-235.32988689,0.00016711,2]
[363916663,1748925046774,-157.29899031,0.00016711,2]
[363916665,1748925046786,-384.39100969,0.00016711,2]
[363916667,1748925046796,-811.5,0.00016711,2]
[363916669,1748925046806,-440.0,0.00016711,2]
[363916671,1748925046815,-814.35,0.00016711,2]
[363916673,1748925046825,-440.0,0.00016711,2]
[363916675,1748925046834,-440.0,0.00016711,2]
[363916677,1748925046844,-440.0,0.00016711,2]
[363916680,1748925046856,-440.0,0.00016711,2]
[363916682,1748925046866,-440.0,0.00016711,2]
[363916684,1748925046876,-440.0,0.00016711,2]
[363916686,1748925046886,-440.0,0.00016711,2]
[363916688,1748925046896,-440.0,0.00016711,2]
[363916689,1748925046905,-440.0,0.00016711,2]
[363916692,1748925046915,-440.0,0.00016711,2]
[363916694,1748925046926,-222.24109437,0.00016711,2]
[363916696,1748925046935,-440.0,0.00016711,2]
[363916698,1748925046945,-440.0,0.00016711,2]
[363916700,1748925046955,-440.0,0.00016711,2]
[363916702,1748925046970,-440.0,0.00016711,2]
[363916704,1748925046979,-440.0,0.00016712,2]
[363916706,1748925046989,-440.0,0.00016712,2]
[363916708,1748925046998,-845.18,0.00016712,2]
[363916710,1748925047008,-470.98,0.00016712,2]
[363916712,1748925047018,-440.0,0.00016712,2]
[363916714,1748925047028,-467.06,0.00016712,2]
[363916716,1748925047038,-440.0,0.00016985,2]
[363916718,1748925047048,-575.84,0.00016985,2]
[363916720,1748925047057,-440.0,0.00016985,2]
[363916722,1748925047067,-861.78,0.00016985,2]
[363916724,1748925047076,-541.69,0.00016985,2]
[363916726,1748925047086,-811.5,0.00016985,2]
[363916728,1748925047095,-440.0,0.00016985,2]
[363916730,1748925047105,-814.35,0.00016985,2]
[363916732,1748925047115,-440.0,0.00016985,2]
[363916734,1748925047124,-209.01,0.00016985,2]
[363916736,1748925047134,-440.0,0.00016985,2]
[363916738,1748925047144,-440.0,0.00016985,2]
[363916758,1748925047320,-440.0,0.00016985,2]
[363916760,1748925047332,-500.0,0.00016985,2]
[363916763,1748925047342,-440.0,0.00016985,2]
[363916765,1748925047355,-420.0,0.00016985,2]
[363916767,1748925047365,-440.0,0.00016985,2]
[363916769,1748925047375,-440.0,0.00016985,2]
[363916771,1748925047386,-440.0,0.00016985,2]
[363916773,1748925047395,-440.0,0.00016985,2]
[363916775,1748925047405,-440.0,0.00016985,2]
[363916777,1748925047415,-845.18,0.00016986,2]
[363916779,1748925047424,-470.98,0.00016986,2]
[363916781,1748925047434,-440.0,0.00016986,2]
[363916783,1748925047444,-233.36360912,0.00016986,2]
[363916786,1748925047456,-233.69639088,0.00016986,2]
[363916788,1748925047466,-279.08517216,0.00017,2]
[363919387,1748925376937,414.54,0.000155,2]
[363919389,1748925508301,215.460416,0.00013699,2]
[363919392,1748925874239,-152.0,0.00015604,2]
[363919393,1748925877902,-44.8516018,0.00015604,2]
[363919394,1748925968874,5000.0,0.0001552,2]
[363919395,1748925984703,5000.0,0.0001552,2]
[363919396,1748926000734,1959.4737371,0.0001552,2]
[363919397,1748926101288,3699.7105906,0.00015329,2]
[363919398,1748926102797,1903.2098876,0.00015329,2]
[363919490,1748926238732,-320.47077718,0.000157,2]
[363919492,1748926238742,-1200.0,0.00015827,2]
[363919493,1748926238752,-300.0,0.00015828,2]
[363919495,1748926238762,-300.0,0.00015828,2]
[363919497,1748926238771,-300.0,0.00015828,2]
[363919499,1748926238780,-300.0,0.00015828,2]
[363919500,1748926238790,-300.0,0.00015828,2]
[363919501,1748926238799,-300.0,0.00015828,2]
[363919502,1748926238809,-24330.447075,0.0001583,2]
[363919503,1748926238818,-557.55701661,0.00016338,2]
[363919504,1748926238828,-440.0,0.00016438,2]
[363919505,1748926238837,-430.0,0.00016438,2]
[363919506,1748926238847,-440.0,0.00016438,2]
[363919507,1748926238856,-430.0,0.00016438,2]
[363919508,1748926238865,-440.0,0.00016438,2]
[363919509,1748926238875,-430.0,0.00016438,2]
[363919510,1748926238884,-458.25047519,0.00016438,2]
[363919511,1748926238893,-430.0,0.00016438,2]
[363919512,1748926238902,-457.15602929,0.00016438,2]
[363919513,1748926238913,-430.0,0.00016438,2]
[363919514,1748926238922,-430.0,0.00016438,2]
[363919515,1748926238931,-430.0,0.00016438,2]
[363919516,1748926238941,-432.027105,0.00016438,2]
[363919517,1748926238951,-440.0,0.00016438,2]
[363919518,1748926238960,-299.32667502,0.00016438,2]
[363919519,1748926238970,-430.0,0.00016438,2]
[363919520,1748926238979,-430.0,0.00016438,2]
[363919521,1748926238988,-343.5487679,0.00016438,2]
[363919522,1748926238997,-500.0,0.00016438,2]
[363919523,1748926239007,-430.0,0.00016438,2]
[363919524,1748926239016,-430.0,0.00016438,2]
[363919525,1748926239026,-440.0,0.00016438,2]
[363919526,1748926239036,-951.52,0.00016438,2]
[363919527,1748926239045,-430.0,0.00016438,2]
[363919528,1748926239055,-430.0,0.00016438,2]
[363919529,1748926239064,-430.0,0.00016438,2]
[363919530,1748926239074,-430.0,0.00016438,2]
[363919531,1748926239084,-442.93548135,0.00016438,2]
[363919532,1748926239094,-430.0,0.00016438,2]
[363919533,1748926239103,-430.0,0.00016438,2]
[363919534,1748926239113,-430.0,0.00016438,2]
[363919535,1748926239122,-430.0,0.00016438,2]
[363919536,1748926239132,-430.0,0.00016438,2]
[363919537,1748926239141,-440.0,0.00016438,2]
[363919538,1748926239151,-400.0,0.00016438,2]
[363919539,1748926239160,-430.0,0.00016438,2]
[363919540,1748926239169,-440.0,0.00016438,2]
[363919541,1748926239178,-717.9,0.00016438,2]
[363919542,1748926239188,-430.0,0.00016438,2]
[363919543,1748926239197,-425.0,0.00016438,2]
[363919544,1748926239207,-430.0,0.00016438,2]
[363919545,1748926239217,-1510.98,0.00016438,2]
[363919546,1748926239227,-440.0,0.00016438,2]
[363919547,1748926239237,-440.0,0.00016438,2]
[363919548,1748926239247,-440.0,0.00016438,2]
[363919549,1748926239256,-430.0,0.00016438,2]
[363919550,1748926239266,-430.0,0.00016438,2]
[363919551,1748926239277,-430.0,0.00016438,2]
[363919552,1748926239287,-440.0,0.00016438,2]
[363919553,1748926239297,-430.0,0.00016438,2]
[363919554,1748926239307,-430.0,0.00016438,2]
[363919555,1748926239316,-502.07427984,0.00016438,2]
[363919556,1748926239326,-430.0,0.00016438,2]
[363919557,1748926239336,-430.0,0.00016438,2]
[363919558,1748926239346,-440.0,0.00016438,2]
[363919559,1748926239356,-443.20332421,0.00016438,2]
[363919560,1748926239370,-430.0,0.00016438,2]
[363919561,1748926239380,-430.0,0.00016438,2]
[363919562,1748926239389,-430.0,0.00016438,2]
[363919563,1748926239399,-430.0,0.00016438,2]
[363919564,1748926239409,-535.35421942,0.00016438,2]
[363919565,1748926239419,-440.0,0.00016438,2]
[363919566,1748926239430,-440.0,0.00016438,2]
[363919567,1748926239443,-352.62714514,0.00016438,2]
[363919568,1748926239452,-440.0,0.00016438,2]
[363919569,1748926239462,-440.0,0.00016438,2]
[363919570,1748926239472,-430.0,0.00016438,2]
[363919571,1748926239482,-588.45,0.00016438,2]
[363919572,1748926239492,-763.39,0.00016438,2]
[363919573,1748926239502,-430.0,0.00016438,2]
[363919574,1748926239512,-440.0,0.00016438,2]
[363919575,1748926239522,-430.0,0.00016438,2]
[363919576,1748926239533,-430.0,0.00016438,2]
[363919577,1748926239542,-430.0,0.00016438,2]
[363919578,1748926239552,-430.0,0.00016438,2]
[363919579,1748926239561,-440.0,0.00016438,2]
[363919580,1748926239571,-440.0,0.00016438,2]
[363919581,1748926239581,-430.0,0.00016438,2]
[363919582,1748926239596,-440.0,0.00016438,2]
[363919583,1748926239611,-430.0,0.00016438,2]
[363919584,1748926239621,-430.0,0.00016438,2]
[363919585,1748926239632,-440.0,0.00016438,2]
[363919586,1748926239642,-430.0,0.00016438,2]
[363919587,1748926239652,-440.0,0.00016438,2]
[363919588,1748926239662,-440.0,0.00016438,2]
[363919589,1748926239672,-430.0,0.00016438,2]
[363919590,1748926239683,-440.0,0.00016438,2]
[363919591,1748926239693,-32778.83565344,0.00016708,3]
[363919592,1748926239703,-57633.39156712,0.00016708,2]
[363919593,1748926239713,-842.5625,0.00016709,3]
[363919594,1748926239723,-160.0,0.00016709,3]
[363919595,1748926239734,-440.0,0.00016709,2]
[363919596,1748926239743,-435.81428976,0.00016709,2]
[363919597,1748926239753,-430.0,0.00016709,2]
[363919598,1748926239763,-430.0,0.00016709,2]
[363919599,1748926239773,-440.0,0.00016709,2]
[363919600,1748926239783,-446.98836196,0.00016709,2]
[363919601,1748926239793,-430.0,0.00016709,2]
[363919602,1748926239802,-440.0,0.00016709,2]
[363919603,1748926239813,-440.0,0.00016709,2]
[363919604,1748926239822,-430.0,0.00016709,2]
[363919605,1748926239832,-440.0,0.00016709,2]
[363919606,1748926239842,-430.0,0.00016709,2]
[363919607,1748926239852,-440.0,0.00016709,2]
[363919608,1748926239861,-440.0,0.00016709,2]
[363919609,1748926239872,-430.0,0.00016709,2]
[363919610,1748926239882,-430.0,0.00016709,2]
[363919611,1748926239892,-430.0,0.00016709,2]
[363919612,1748926239903,-440.0,0.00016709,2]
[363919613,1748926239914,-1177.26,0.00016709,2]
[363919614,1748926239924,-430.0,0.00016709,2]
[363919615,1748926239935,-440.0,0.00016709,2]
[363919616,1748926239944,-430.0,0.00016709,2]
[363919617,1748926239955,-1462.82,0.00016709,2]
[363919618,1748926239964,-430.0,0.00016709,2]
[363919619,1748926239974,-430.0,0.00016709,2]
[363919620,1748926239985,-440.0,0.00016709,2]
[363919621,1748926239995,-440.0,0.00016709,2]
[363919622,1748926240005,-440.0,0.00016709,2]
[363919623,1748926240014,-440.0,0.00016709,2]
[363919624,1748926240023,-440.0,0.00016709,2]
[363919625,1748926240033,-430.0,0.00016709,2]
[363919626,1748926240042,-430.0,0.00016709,2]
[363919627,1748926240052,-430.0,0.00016709,2]
[363919628,1748926240062,-440.0,0.00016709,2]
[363919629,1748926240071,-430.0,0.00016709,2]
[363919630,1748926240081,-440.0,0.00016709,2]
[363919631,1748926240090,-430.0,0.00016709,2]
[363919632,1748926240100,-430.0,0.00016709,2]
[363919633,1748926240109,-430.0,0.00016709,2]
[363919634,1748926240118,-440.0,0.00016709,2]
[363919635,1748926240128,-430.0,0.00016709,2]
[363919636,1748926240137,-440.0,0.00016709,2]
[363919637,1748926240148,-430.0,0.00016709,2]
[363919638,1748926240158,-440.0,0.00016709,2]
[363919639,1748926240168,-440.0,0.00016709,2]
[363919641,1748926240179,-440.0,0.00016709,2]
[363919643,1748926240190,-440.0,0.00016709,2]
[363919645,1748926240200,-440.0,0.00016709,2]
[363919648,1748926240210,-1528.45,0.0001671,2]
[363919650,1748926240225,-430.0,0.0001671,2]
[363919652,1748926240235,-1366.97,0.0001671,2]
[363919654,1748926240245,-430.0,0.0001671,2]
[363919656,1748926240255,-440.0,0.0001671,2]
[363919658,1748926240265,-430.0,0.0001671,2]
[363919660,1748926240274,-440.0,0.0001671,2]
[363919662,1748926240284,-430.0,0.0001671,2]
[363919664,1748926240294,-430.0,0.0001671,2]
[363919666,1748926240304,-430.0,0.0001671,2]
[363919668,1748926240313,-440.0,0.0001671,2]
[363919670,1748926240323,-430.0,0.0001671,2]
[363919671,1748926240332,-430.0,0.0001671,2]
[363919673,1748926240341,-430.0,0.0001671,2]
[363919675,1748926240351,-649.77,0.0001671,2]
[363919677,1748926240363,-430.0,0.0001671,2]
[363919679,1748926240372,-440.0,0.0001671,2]
[363919681,1748926240381,-430.0,0.0001671,2]
[363919683,1748926240391,-430.0,0.0001671,2]
[363919685,1748926240400,-575.0,0.0001671,2]
[363919687,1748926240410,-430.0,0.0001671,2]
[363919689,1748926240419,-430.0,0.0001671,2]
[363919691,1748926240428,-385.40300432,0.0001671,2]
[363919693,1748926240439,-440.0,0.0001671,2]
[363919695,1748926240449,-440.0,0.0001671,2]
[363919697,1748926240459,-440.0,0.0001671,2]
[363919699,1748926240468,-430.0,0.0001671,2]
[363919701,1748926240478,-440.0,0.0001671,2]
[363919703,1748926240487,-440.0,0.0001671,2]
[363919705,1748926240496,-440.0,0.0001671,2]
[363919707,1748926240506,-440.0,0.0001671,2]
[363919709,1748926240515,-430.0,0.0001671,2]
[363919711,1748926240525,-430.0,0.0001671,2]
[363919713,1748926240534,-440.0,0.0001671,2]
[363919714,1748926240544,-440.0,0.0001671,2]
[363919716,1748926240554,-440.0,0.0001671,2]
[363919719,1748926240563,-440.0,0.0001671,2]
[363919720,1748926240572,-532.7,0.0001671,2]
[363919722,1748926240582,-440.0,0.0001671,2]
[363919724,1748926240591,-430.0,0.0001671,2]
[363919727,1748926240602,-440.0,0.0001671,2]
[363919729,1748926240613,-440.0,0.0001671,2]
[363919731,1748926240623,-440.0,0.0001671,2]
[363919733,1748926240635,-440.0,0.0001671,2]
[363919735,1748926240644,-781.56,0.0001671,2]
[363919737,1748926240654,-440.0,0.0001671,2]
[363919738,1748926240664,-440.0,0.0001671,2]
[363919739,1748926240674,-440.0,0.0001671,2]
[363919740,1748926240686,-430.0,0.0001671,2]
[363919741,1748926240697,-1919.59,0.0001671,2]
[363919742,1748926240707,-401.27644943,0.00016711,2]
[363919744,1748926240718,-12670.76136593,0.00016712,3]
[363919746,1748926240728,-440.0,0.00016712,2]
[363919748,1748926240737,-430.0,0.00016712,2]
[363919750,1748926240747,-440.0,0.00016712,2]
[363919752,1748926240757,-951.52,0.00016712,2]
[363919754,1748926240767,-420.0,0.00016712,2]
[363919756,1748926240776,-440.0,0.00016712,2]
[363919758,1748926240787,-717.9,0.00016712,2]
[363919760,1748926240797,-1510.98,0.00016712,2]
[363919762,1748926240807,-420.0,0.00016712,2]
[363919764,1748926240816,-420.0,0.00016712,2]
[363919766,1748926240825,-510.28075095,0.00016712,2]
[363919768,1748926240835,-420.0,0.00016712,2]
[363919770,1748926240845,-330.47307538,0.00016712,2]
[363919772,1748926240855,-440.0,0.00016712,2]
[363919774,1748926240864,-420.0,0.00016712,2]
[363919776,1748926240874,-481.58464146,0.00016712,2]
[363919778,1748926240884,-440.0,0.00016712,2]
[363919780,1748926240893,-588.45,0.00016712,2]
[363919781,1748926240902,-763.39,0.00016712,2]
[363919783,1748926240911,-239.34,0.00016712,2]
[363919785,1748926240920,-440.0,0.00016712,2]
[363919787,1748926240929,-440.0,0.00016712,2]
[363919788,1748926240939,-440.0,0.00016712,2]
[363919789,1748926240948,-420.0,0.00016712,2]
[363919790,1748926240958,-377.19311173,0.00016712,2]
[363919791,1748926240967,-440.0,0.00016712,2]
[363919792,1748926240976,-541.88572857,0.00016761,2]
[363919793,1748926240986,-2291.3452221,0.00016885,2]
[363919794,1748926240995,-440.0,0.00016983,2]
[363919795,1748926241188,-440.0,0.00016983,2]
[363919796,1748926241199,-430.0,0.00016983,2]
[363919797,1748926241208,-420.0,0.00016983,2]
[363919798,1748926241218,-440.0,0.00016983,2]
[363919799,1748926241227,-504.41,0.00016983,2]
[363919800,1748926241237,-440.0,0.00016983,2]
[363919801,1748926241246,-420.0,0.00016983,2]
[363919802,1748926241255,-1177.26,0.00016983,2]
[363919803,1748926241265,-440.0,0.00016983,2]
[363919804,1748926241275,-1462.82,0.00016983,2]
[363919805,1748926241284,-440.0,0.00016983,2]
[363919806,1748926241293,-420.0,0.00016983,2]
[363919807,1748926241302,-440.0,0.00016983,2]
[363919808,1748926241311,-440.0,0.00016983,2]
[363919809,1748926241321,-420.0,0.00016983,2]
[363919810,1748926241330,-440.0,0.00016983,2]
[363919811,1748926241339,-440.0,0.00016983,2]
[363919812,1748926241348,-453.12294541,0.00016983,2]
[363919813,1748926241360,-440.0,0.00016983,2]
[363919814,1748926241371,-440.0,0.00016983,2]
[363919815,1748926241380,-371.67,0.00016983,2]
[363919816,1748926241390,-440.0,0.00016983,2]
[363919817,1748926241401,-440.0,0.00016983,2]
[363919818,1748926241411,-440.0,0.00016983,2]
[363919820,1748926241420,-1528.45,0.00016984,2]
[363919822,1748926241429,-440.0,0.00016984,2]
[363919824,1748926241440,-440.0,0.00016984,2]
[363919826,1748926241450,-420.0,0.00016984,2]
[363919828,1748926241459,-649.77,0.00016984,2]
[363919829,1748926241468,-420.0,0.00016984,2]
[363919831,1748926241478,-575.0,0.00016984,2]
[363919833,1748926241488,-440.0,0.00016984,2]
[363919835,1748926241497,-440.0,0.00016984,2]
[363919837,1748926241507,-440.0,0.00016984,2]
[363919839,1748926241517,-440.0,0.00016984,2]
[363919841,1748926241527,-420.0,0.00016984,2]
[363919843,1748926241536,-480.85504194,0.00016984,2]
[363919845,1748926241546,-440.0,0.00016984,2]
[363919847,1748926241556,-420.0,0.00016984,2]
[363919849,1748926241566,-440.0,0.00016984,2]
[363919851,1748926241576,-420.0,0.00016984,2]
[363919853,1748926241585,-420.0,0.00016984,2]
[363919855,1748926241595,-532.7,0.00016984,2]
[363919857,1748926241604,-440.0,0.00016984,2]
[363919859,1748926241614,-440.0,0.00016984,2]
[363919861,1748926241624,-440.0,0.00016984,2]
[363919862,1748926241633,-440.0,0.00016984,2]
[363919864,1748926241643,-781.56,0.00016984,2]
[363919866,1748926241653,-440.0,0.00016984,2]
[363919869,1748926241663,-440.0,0.00016984,2]
[363919871,1748926241672,-440.0,0.00016984,2]
[363919872,1748926241682,-1919.59,0.00016984,2]
[363919874,1748926241693,-1366.97,0.00016985,2]
[363919877,1748926241703,-440.0,0.00016986,2]
[363919879,1748926241713,-430.0,0.00016986,2]
[363919881,1748926241723,-951.52,0.00016986,2]
[363919883,1748926241733,-420.0,0.00016986,2]
[363919885,1748926241743,-717.9,0.00016986,2]
[363919887,1748926241751,-1510.98,0.00016986,2]
[363919889,1748926241761,-440.0,0.00016986,2]
[363919891,1748926241771,-410.0,0.00016986,2]
[363919892,1748926241785,-588.45,0.00016986,2]
[363919894,1748926241794,-763.39,0.00016986,2]
[363919896,1748926241804,-440.0,0.00016986,2]
[363919898,1748926241813,-430.14959396,0.00016986,2]
[363919900,1748926241823,-440.0,0.00016986,2]
[363919902,1748926241832,-315.0,0.00017,10]
[363919904,1748926241842,-1788.58471765,0.00017,2]
[363919906,1748926241852,-2857.9,0.00017,10]
[363919908,1748926241862,-2857.9,0.00017,10]
[363919911,1748926241872,-155.0,0.00017,2]
[363919912,1748926241881,-1788.58471762,0.00017141,2]
[363919915,1748926241891,-500.0,0.00017225,2]
[363919917,1748926241901,-440.0,0.00017257,2]
[363919919,1748926241910,-440.0,0.00017257,2]
[363919921,1748926241919,-420.0,0.00017257,2]
[363919922,1748926241929,-440.0,0.00017257,2]
[363919925,1748926241938,-1177.26,0.00017257,2]
[363919926,1748926241948,-440.0,0.00017257,2]
[363919929,1748926241958,-1462.82,0.00017257,2]
[363919930,1748926241967,-440.0,0.00017257,2]
[363919932,1748926241976,-410.0,0.00017257,2]
[363919934,1748926241986,-440.0,0.00017257,2]
[363919936,1748926241996,-440.0,0.00017257,2]
[363919939,1748926242006,-440.0,0.00017257,2]
[363919940,1748926242015,-440.0,0.00017257,2]
[363919943,1748926242024,-440.0,0.00017257,2]
[363919944,1748926242033,-440.0,0.00017257,2]
[363919946,1748926242043,-440.0,0.00017257,2]
[363919949,1748926242053,-440.0,0.00017257,2]
[363919950,1748926242062,-1528.45,0.00017258,2]
[363919952,1748926242071,-440.0,0.00017258,2]
[363919954,1748926242081,-440.0,0.00017258,2]
[363919956,1748926242091,-649.77,0.00017258,2]
[363919958,1748926242100,-575.0,0.00017258,2]
[363919960,1748926242110,-440.0,0.00017258,2]
[363919962,1748926242120,-420.0,0.00017258,2]
[363919964,1748926242130,-440.0,0.00017258,2]
[363919966,1748926242139,-410.0,0.00017258,2]
[363919968,1748926242149,-440.0,0.00017258,2]
[363919970,1748926242159,-440.0,0.00017258,2]
[363919972,1748926242168,-532.7,0.00017258,2]
[363919974,1748926242178,-410.0,0.00017258,2]
[363919976,1748926242189,-410.0,0.00017258,2]
[363919978,1748926242198,-440.0,0.00017258,2]
[363919980,1748926242207,-440.0,0.00017258,2]
[363919982,1748926242216,-781.56,0.00017258,2]
[363919984,1748926242225,-440.0,0.00017258,2]
[363919986,1748926242235,-440.0,0.00017258,2]